[Event "*** Titled Tuesday Blitz"]
[Site "Chess.com"]
[Date "2020.05.12"]
[Round "6"]
[White "MilanovicDan"]
[Black "Bacyanide"]
[Result "0-1"]
[WhiteElo "2557"]
[BlackElo "2427"]
[TimeControl "180+1"]
[EndTime "11:06:36 PDT"]
[Termination "Bacyanide won on time"]

1. d4 {[%clk 0:03:00.9]} 1... d5 {[%clk 0:02:59.8]} 2. c4 {[%clk 0:02:59.7]}
2... e6 {[%clk 0:03:00.1]} 3. Nc3 {[%clk 0:02:59.2]} 3... c5 {[%clk 0:02:58]} 4.
cxd5 {[%clk 0:02:57.6]} 4... exd5 {[%clk 0:02:58.9]} 5. Nf3 {[%clk 0:02:55.9]}
5... Nf6 {[%clk 0:02:57.8]} 6. g3 {[%clk 0:02:55.6]} 6... Nc6 {[%clk 0:02:56.6]}
7. Bg2 {[%clk 0:02:55.6]} 7... cxd4 {[%clk 0:02:56.9]} 8. Nxd4 {[%clk 0:02:55]}
8... Bc5 {[%clk 0:02:57.5]} 9. Nb3 {[%clk 0:02:49]} 9... Bb6 {[%clk 0:02:56.3]}
10. O-O {[%clk 0:02:48.7]} 10... d4 {[%clk 0:02:55.3]} 11. Na4 {[%clk
0:02:47.6]} 11... O-O {[%clk 0:02:54.3]} 12. Nxb6 {[%clk 0:02:38]} 12... axb6
{[%clk 0:02:55.2]} 13. e3 {[%clk 0:02:37.6]} 13... d3 {[%clk 0:02:47.8]} 14. e4
{[%clk 0:02:32.9]} 14... Be6 {[%clk 0:02:42.8]} 15. Be3 {[%clk 0:02:28.1]} 15...
Nb4 {[%clk 0:02:33.1]} 16. Nd4 {[%clk 0:02:05]} 16... Bxa2 {[%clk 0:02:21]} 17.
b3 {[%clk 0:01:57.6]} 17... Re8 {[%clk 0:02:07.1]} 18. Qd2 {[%clk 0:01:50.9]}
18... Qd6 {[%clk 0:01:42.2]} 19. Nf5 {[%clk 0:01:25.8]} 19... Qf8 {[%clk
0:01:40.9]} 20. Bd4 {[%clk 0:01:17]} 20... Nc2 {[%clk 0:00:46.8]} 21. Bxf6
{[%clk 0:01:05.7]} 21... gxf6 {[%clk 0:00:47.7]} 22. Qxd3 {[%clk 0:00:45.4]}
22... Nxa1 {[%clk 0:00:44.2]} 23. Rxa1 {[%clk 0:00:44.6]} 23... Qc5 {[%clk
0:00:28.9]} 24. Qf3 {[%clk 0:00:24.6]} 24... Kh8 {[%clk 0:00:29]} 25. Bf1 {[%clk
0:00:19.8]} 25... Qe5 {[%clk 0:00:27.5]} 26. Re1 {[%clk 0:00:16.1]} 26... b5
{[%clk 0:00:18.1]} 27. Kg2 {[%clk 0:00:12.7]} 27... Ra3 {[%clk 0:00:17.4]} 28.
Re3 {[%clk 0:00:11.8]} 28... b6 {[%clk 0:00:11.4]} 29. Be2 {[%clk 0:00:09.2]}
29... Bb1 {[%clk 0:00:11.6]} 30. Bd3 {[%clk 0:00:05.9]} 30... Rxb3 {[%clk
0:00:11.6]} 31. Bxb1 {[%clk 0:00:05.6]} 31... Rxb1 {[%clk 0:00:12.5]} 32. Rd3
{[%clk 0:00:05]} 32... Rb4 {[%clk 0:00:09.7]} 33. Rd7 {[%clk 0:00:04]} 33...
Qxe4 {[%clk 0:00:09.8]} 34. Rxf7 {[%clk 0:00:03.2]} 34... Qxf3+ {[%clk
0:00:09.5]} 35. Kxf3 {[%clk 0:00:04.1]} 35... Rb3+ {[%clk 0:00:10]} 36. Kg4
{[%clk 0:00:03.2]} 36... b4 {[%clk 0:00:08.6]} 37. Rb7 {[%clk 0:00:01.4]} 37...
Rb2 {[%clk 0:00:08.2]} 38. f4 {[%clk 0:00:01.3]} 38... b3 {[%clk 0:00:08.2]} 39.
Rxb6 {[%clk 0:00:01.3]} 39... Rb1 {[%clk 0:00:08.7]} 40. h4 {[%clk 0:00:01.2]}
40... b2 {[%clk 0:00:09.1]} 41. Kh5 {[%clk 0:00:01.4]} 41... Rg8 {[%clk
0:00:08.1]} 0-1

[Event "*** Titled Tuesday Blitz"]
[Site "Chess.com"]
[Date "2020.05.12"]
[Round "6"]
[White "GuerrieroFromLevant"]
[Black "LLRChess"]
[Result "0-1"]
[WhiteElo "2388"]
[BlackElo "2564"]
[TimeControl "180+1"]
[EndTime "11:06:36 PDT"]
[Termination "LLRChess won by resignation"]

1. e4 {[%clk 0:03:00.9]} 1... d6 {[%clk 0:02:59.6]} 2. d4 {[%clk 0:03:00]} 2...
Nf6 {[%clk 0:02:59.9]} 3. Nc3 {[%clk 0:03:00.1]} 3... g6 {[%clk 0:02:58.7]} 4.
Be3 {[%clk 0:02:51.5]} 4... c6 {[%clk 0:02:57.4]} 5. a4 {[%clk 0:02:50.6]} 5...
Bg7 {[%clk 0:02:54.3]} 6. h3 {[%clk 0:02:50.1]} 6... O-O {[%clk 0:02:53.5]} 7.
Nf3 {[%clk 0:02:49.1]} 7... Qc7 {[%clk 0:02:47.6]} 8. Be2 {[%clk 0:02:48.1]}
8... Nbd7 {[%clk 0:02:47.6]} 9. O-O {[%clk 0:02:47.2]} 9... a5 {[%clk
0:02:47.5]} 10. Qc1 {[%clk 0:02:45.9]} 10... Re8 {[%clk 0:02:45.1]} 11. Rd1
{[%clk 0:02:45.3]} 11... b6 {[%clk 0:02:36.7]} 12. b3 {[%clk 0:02:42.6]} 12...
Bb7 {[%clk 0:02:35]} 13. Qa3 {[%clk 0:02:41.5]} 13... Rad8 {[%clk 0:02:30.1]}
14. Kh1 {[%clk 0:02:36]} 14... e5 {[%clk 0:02:23.9]} 15. dxe5 {[%clk 0:02:35.8]}
15... Nxe5 {[%clk 0:02:23.2]} 16. Nxe5 {[%clk 0:02:36.1]} 16... dxe5 {[%clk
0:02:20.5]} 17. b4 {[%clk 0:02:31.8]} 17... Bf8 {[%clk 0:02:19.4]} 18. Qb3
{[%clk 0:02:19.4]} 18... axb4 {[%clk 0:02:19.5]} 19. Na2 {[%clk 0:02:18.2]}
19... c5 {[%clk 0:02:05.8]} 20. f3 {[%clk 0:02:15.2]} 20... Bc6 {[%clk 0:02:03]}
21. c3 {[%clk 0:02:10.2]} 21... Ra8 {[%clk 0:02:02.4]} 22. Bb5 {[%clk
0:02:10.4]} 22... Bxb5 {[%clk 0:01:55.8]} 23. axb5 {[%clk 0:02:11.3]} 23... Ra3
{[%clk 0:01:38.3]} 24. Qb2 {[%clk 0:02:01]} 24... Rea8 {[%clk 0:01:37.9]} 25.
cxb4 {[%clk 0:02:00.1]} 25... cxb4 {[%clk 0:01:27.9]} 26. Bd2 {[%clk 0:01:44.2]}
26... Qc4 {[%clk 0:01:23.9]} 27. Nxb4 {[%clk 0:01:35.4]} 27... Rxa1 {[%clk
0:01:14.7]} 28. Rxa1 {[%clk 0:01:35.2]} 28... Rxa1+ {[%clk 0:01:14.2]} 29. Qxa1
{[%clk 0:01:36.1]} 29... Bxb4 {[%clk 0:01:13.9]} 30. Bxb4 {[%clk 0:01:15.3]}
30... Qxb4 {[%clk 0:01:14.8]} 31. Qxe5 {[%clk 0:01:15.6]} 31... Nd7 {[%clk
0:01:00.3]} 32. Qe8+ {[%clk 0:01:11.8]} 32... Nf8 {[%clk 0:00:59.7]} 33. f4
{[%clk 0:00:53.6]} 33... Qd2 {[%clk 0:00:48]} 34. Qc6 {[%clk 0:00:43.3]} 34...
Qd4 {[%clk 0:00:28]} 35. f5 {[%clk 0:00:37.4]} 35... Kg7 {[%clk 0:00:28.2]} 36.
g4 {[%clk 0:00:30.4]} 36... Nd7 {[%clk 0:00:20.9]} 37. g5 {[%clk 0:00:24.5]}
37... f6 {[%clk 0:00:21.2]} 38. gxf6+ {[%clk 0:00:19.3]} 38... Nxf6 {[%clk
0:00:21.1]} 39. Qc7+ {[%clk 0:00:19.5]} 39... Kh6 {[%clk 0:00:20.6]} 40. e5
{[%clk 0:00:19.3]} 40... Ne4 {[%clk 0:00:18.4]} 41. e6 {[%clk 0:00:18]} 41...
Qd1+ {[%clk 0:00:13.5]} 42. Kg2 {[%clk 0:00:18.3]} 42... Qe2+ {[%clk 0:00:13.5]}
43. Kg1 {[%clk 0:00:18.7]} 43... Qf2+ {[%clk 0:00:13.5]} 44. Kh1 {[%clk
0:00:17.8]} 44... Ng3+ {[%clk 0:00:14.4]} 45. Qxg3 {[%clk 0:00:17.2]} 45... Qxg3
{[%clk 0:00:15.3]} 46. f6 {[%clk 0:00:17.8]} 46... Qe5 {[%clk 0:00:14.2]} 47. e7
{[%clk 0:00:16.9]} 47... Qe6 {[%clk 0:00:14.4]} 48. Kh2 {[%clk 0:00:16.9]} 48...
Kg5 {[%clk 0:00:14.2]} 49. h4+ {[%clk 0:00:17.1]} 49... Kxf6 {[%clk 0:00:14.4]}
50. e8=Q {[%clk 0:00:17.7]} 50... Qxe8 {[%clk 0:00:14.3]} 0-1

[Event "*** Titled Tuesday Blitz"]
[Site "Chess.com"]
[Date "2020.05.12"]
[Round "6"]
[White "DishonorOnYourCow"]
[Black "albi1999"]
[Result "1-0"]
[WhiteElo "2344"]
[BlackElo "2534"]
[TimeControl "180+1"]
[EndTime "11:06:36 PDT"]
[Termination "DishonorOnYourCow won by resignation"]

1. d4 {[%clk 0:03:00.9]} 1... d5 {[%clk 0:03:00.2]} 2. c4 {[%clk 0:03:00.7]}
2... e6 {[%clk 0:02:59.8]} 3. Nc3 {[%clk 0:03:00.2]} 3... Nf6 {[%clk 0:03:00.4]}
4. cxd5 {[%clk 0:03:00.2]} 4... Nxd5 {[%clk 0:03:01.3]} 5. e4 {[%clk 0:02:59.2]}
5... Nxc3 {[%clk 0:03:01.7]} 6. bxc3 {[%clk 0:02:59.7]} 6... c5 {[%clk
0:03:02.6]} 7. Rb1 {[%clk 0:02:59.4]} 7... Be7 {[%clk 0:03:02.1]} 8. Nf3 {[%clk
0:02:54.2]} 8... O-O {[%clk 0:03:02.6]} 9. Be2 {[%clk 0:02:53.4]} 9... b6 {[%clk
0:03:00.5]} 10. O-O {[%clk 0:02:51.7]} 10... Bb7 {[%clk 0:02:58.9]} 11. Bd3
{[%clk 0:02:44.8]} 11... Nd7 {[%clk 0:02:47]} 12. Be3 {[%clk 0:02:39.5]} 12...
Rc8 {[%clk 0:02:33.9]} 13. Qe2 {[%clk 0:02:26.4]} 13... Nf6 {[%clk 0:02:21.9]}
14. Bg5 {[%clk 0:02:00.3]} 14... cxd4 {[%clk 0:02:17.2]} 15. cxd4 {[%clk
0:01:59.7]} 15... h6 {[%clk 0:02:17.6]} 16. Bh4 {[%clk 0:01:51.1]} 16... Nd7
{[%clk 0:02:10.1]} 17. Bg3 {[%clk 0:01:41.9]} 17... Re8 {[%clk 0:01:59.5]} 18.
Bb5 {[%clk 0:01:38.2]} 18... Rf8 {[%clk 0:01:52.4]} 19. Rbd1 {[%clk 0:01:31.8]}
19... Nf6 {[%clk 0:01:50.5]} 20. Bd3 {[%clk 0:00:55.5]} 20... Qd7 {[%clk
0:01:47]} 21. h3 {[%clk 0:00:47.9]} 21... Rfd8 {[%clk 0:01:45.8]} 22. Rfe1
{[%clk 0:00:41.7]} 22... Qa4 {[%clk 0:01:39]} 23. Bb5 {[%clk 0:00:33.7]} 23...
Qa5 {[%clk 0:01:37.3]} 24. Bd3 {[%clk 0:00:21.5]} 24... Bb4 {[%clk 0:01:34.8]}
25. Rf1 {[%clk 0:00:20.8]} 25... Bf8 {[%clk 0:01:30.5]} 26. Bh4 {[%clk
0:00:20.2]} 26... Be7 {[%clk 0:01:30]} 27. e5 {[%clk 0:00:20.3]} 27... Nd5
{[%clk 0:01:29.8]} 28. Qe4 {[%clk 0:00:19.2]} 28... Bxh4 {[%clk 0:01:20.1]} 29.
Qh7+ {[%clk 0:00:17.7]} 29... Kf8 {[%clk 0:01:20.4]} 30. Nxh4 {[%clk 0:00:17.6]}
30... Nf4 {[%clk 0:01:18.1]} 31. Qh8+ {[%clk 0:00:16.1]} 31... Ke7 {[%clk
0:01:18.3]} 32. Qxg7 {[%clk 0:00:16.3]} 32... Rg8 {[%clk 0:01:15.5]} 33. Qf6+
{[%clk 0:00:15.8]} 33... Ke8 {[%clk 0:01:11.6]} 34. Qxf4 {[%clk 0:00:16.7]}
34... Qd5 {[%clk 0:01:08.1]} 35. f3 {[%clk 0:00:15.2]} 35... Rd8 {[%clk
0:00:59.9]} 36. Be4 {[%clk 0:00:15.2]} 36... Qd7 {[%clk 0:00:59]} 37. Bxb7
{[%clk 0:00:15]} 37... Qxb7 {[%clk 0:00:59.9]} 38. Qe3 {[%clk 0:00:13.7]} 38...
Qe7 {[%clk 0:00:59.6]} 39. Qxh6 {[%clk 0:00:13.3]} 39... Kd7 {[%clk 0:00:58.7]}
40. Qf4 {[%clk 0:00:12.6]} 40... Rh8 {[%clk 0:00:57.2]} 41. g3 {[%clk
0:00:11.5]} 41... Rdg8 {[%clk 0:00:57.5]} 42. Kf2 {[%clk 0:00:10.2]} 42... Rh5
{[%clk 0:00:56.2]} 43. d5 {[%clk 0:00:10.2]} 43... Qc5+ {[%clk 0:00:55.6]} 44.
Qe3 {[%clk 0:00:09.1]} 44... Qxe3+ {[%clk 0:00:54.6]} 45. Kxe3 {[%clk
0:00:08.9]} 45... Rxe5+ {[%clk 0:00:55.5]} 46. Kf4 {[%clk 0:00:06.8]} 46... Re2
{[%clk 0:00:53.5]} 47. dxe6+ {[%clk 0:00:06.4]} 47... Kxe6 {[%clk 0:00:53.3]}
48. Rde1 {[%clk 0:00:06.9]} 48... Rxe1 {[%clk 0:00:53.7]} 49. Rxe1+ {[%clk
0:00:07.8]} 49... Kf6 {[%clk 0:00:54.6]} 50. g4 {[%clk 0:00:06.6]} 50... Rc8
{[%clk 0:00:54.8]} 51. Nf5 {[%clk 0:00:06.5]} 51... Rc4+ {[%clk 0:00:54.1]} 52.
Ke3 {[%clk 0:00:06.4]} 52... Rc3+ {[%clk 0:00:54.1]} 53. Ke2 {[%clk 0:00:05.6]}
53... Ra3 {[%clk 0:00:55]} 54. Ra1 {[%clk 0:00:04.9]} 54... b5 {[%clk 0:00:55]}
55. Kf2 {[%clk 0:00:05.2]} 55... b4 {[%clk 0:00:55.2]} 56. Nd4 {[%clk
0:00:04.9]} 56... a5 {[%clk 0:00:54.5]} 57. Nc2 {[%clk 0:00:05.1]} 57... Rc3
{[%clk 0:00:54.4]} 58. Ne3 {[%clk 0:00:05.3]} 58... Ra3 {[%clk 0:00:52.6]} 59.
Nc4 {[%clk 0:00:04.3]} 59... Rb3 {[%clk 0:00:52.3]} 60. axb3 {[%clk 0:00:03.4]}
1-0

[Event "*** Titled Tuesday Blitz"]
[Site "Chess.com"]
[Date "2020.05.12"]
[Round "6"]
[White "MiroVlasenko"]
[Black "mamey78"]
[Result "1-0"]
[WhiteElo "2615"]
[BlackElo "2364"]
[TimeControl "180+1"]
[EndTime "11:06:37 PDT"]
[Termination "MiroVlasenko won on time"]

1. e4 {[%clk 0:03:00.9]} 1... e5 {[%clk 0:02:58.6]} 2. Nc3 {[%clk 0:03:00.7]}
2... Nc6 {[%clk 0:02:58.4]} 3. Bc4 {[%clk 0:03:00.5]} 3... Nf6 {[%clk
0:02:55.5]} 4. d3 {[%clk 0:02:59.2]} 4... Bc5 {[%clk 0:02:48.8]} 5. f4 {[%clk
0:02:58.6]} 5... d6 {[%clk 0:02:47.6]} 6. Nf3 {[%clk 0:02:58.3]} 6... Bg4 {[%clk
0:02:47.8]} 7. h3 {[%clk 0:02:56]} 7... Bxf3 {[%clk 0:02:45.7]} 8. Qxf3 {[%clk
0:02:55.6]} 8... exf4 {[%clk 0:02:37.6]} 9. Bxf4 {[%clk 0:02:30.2]} 9... Ne5
{[%clk 0:02:26.2]} 10. Bxe5 {[%clk 0:02:25.6]} 10... dxe5 {[%clk 0:02:27.1]} 11.
O-O-O {[%clk 0:02:23.2]} 11... Qe7 {[%clk 0:02:09.3]} 12. g4 {[%clk 0:02:20.3]}
12... c6 {[%clk 0:01:35.3]} 13. g5 {[%clk 0:02:11]} 13... Nd7 {[%clk 0:01:34]}
14. h4 {[%clk 0:02:10.4]} 14... b5 {[%clk 0:01:11]} 15. Bb3 {[%clk 0:02:06.1]}
15... a5 {[%clk 0:01:10.8]} 16. Rdf1 {[%clk 0:02:04.1]} 16... Rf8 {[%clk
0:01:09.2]} 17. a4 {[%clk 0:01:54.2]} 17... Nb6 {[%clk 0:00:49.4]} 18. Qf5
{[%clk 0:01:50.7]} 18... Bd4 {[%clk 0:00:39.9]} 19. Kd2 {[%clk 0:00:56.6]} 19...
Rd8 {[%clk 0:00:35.9]} 20. axb5 {[%clk 0:00:52.7]} 20... Bxc3+ {[%clk 0:00:30]}
21. bxc3 {[%clk 0:00:51.8]} 21... cxb5 {[%clk 0:00:30.2]} 22. Qxh7 {[%clk
0:00:44.4]} 22... a4 {[%clk 0:00:27.5]} 23. Ba2 {[%clk 0:00:43.1]} 23... b4
{[%clk 0:00:27.1]} 24. Qxg7 {[%clk 0:00:38.1]} 24... Qc5 {[%clk 0:00:20.1]} 25.
Rf5 {[%clk 0:00:27.1]} 25... Qxc3+ {[%clk 0:00:18.1]} 26. Ke3 {[%clk 0:00:22.8]}
26... Qc5+ {[%clk 0:00:16]} 27. Kf3 {[%clk 0:00:22.1]} 27... Nd7 {[%clk
0:00:14.4]} 28. Bxf7+ {[%clk 0:00:20.9]} 28... Ke7 {[%clk 0:00:13.7]} 29. Rf1
{[%clk 0:00:16.1]} 29... Kd6 {[%clk 0:00:13.3]} 30. Bc4 {[%clk 0:00:15.3]} 30...
Kc7 {[%clk 0:00:12.6]} 31. Kg4 {[%clk 0:00:15]} 31... Rxf5 {[%clk 0:00:11.2]}
32. Rxf5 {[%clk 0:00:15]} 32... Qg1+ {[%clk 0:00:11]} 33. Kh5 {[%clk 0:00:15]}
33... Qd1+ {[%clk 0:00:11.9]} 34. Kg6 {[%clk 0:00:14.7]} 34... Qxc2 {[%clk
0:00:11.2]} 35. Rf7 {[%clk 0:00:14.7]} 35... Qh2 {[%clk 0:00:09.1]} 36. Qf6
{[%clk 0:00:13.8]} 36... Qxh4 {[%clk 0:00:08.4]} 37. Qxe5+ {[%clk 0:00:13.9]}
37... Kb7 {[%clk 0:00:06.5]} 38. Qb5+ {[%clk 0:00:14]} 38... Kc7 {[%clk
0:00:06.5]} 39. Qc5+ {[%clk 0:00:14.3]} 39... Kb7 {[%clk 0:00:05.9]} 40. Bd5+
{[%clk 0:00:14.7]} 40... Kb8 {[%clk 0:00:05.7]} 41. Qb5+ {[%clk 0:00:15.1]}
41... Kc7 {[%clk 0:00:05.7]} 42. Qc6+ {[%clk 0:00:15.4]} 1-0

[Event "*** Titled Tuesday Blitz"]
[Site "Chess.com"]
[Date "2020.05.12"]
[Round "6"]
[White "Zufi1811"]
[Black "HrvojeZagreb"]
[Result "1-0"]
[WhiteElo "2460"]
[BlackElo "2186"]
[TimeControl "180+1"]
[EndTime "11:06:39 PDT"]
[Termination "Zufi1811 won by resignation"]

1. e4 {[%clk 0:03:00.9]} 1... e6 {[%clk 0:02:59.6]} 2. d4 {[%clk 0:02:59.9]}
2... d5 {[%clk 0:02:59.7]} 3. Nc3 {[%clk 0:03:00.3]} 3... dxe4 {[%clk 0:03:00]}
4. Nxe4 {[%clk 0:02:59.7]} 4... Nd7 {[%clk 0:03:00.6]} 5. Nf3 {[%clk 0:02:58.5]}
5... Ngf6 {[%clk 0:03:00.9]} 6. Nxf6+ {[%clk 0:02:58.5]} 6... Nxf6 {[%clk
0:03:01.8]} 7. c3 {[%clk 0:02:58.5]} 7... c5 {[%clk 0:02:59.9]} 8. Ne5 {[%clk
0:02:54.8]} 8... a6 {[%clk 0:02:59.6]} 9. Be3 {[%clk 0:02:50.8]} 9... Qc7 {[%clk
0:02:53.1]} 10. Qa4+ {[%clk 0:02:36.8]} 10... Nd7 {[%clk 0:02:27.6]} 11. Bb5
{[%clk 0:02:18.5]} 11... cxd4 {[%clk 0:01:55.3]} 12. Bxd7+ {[%clk 0:02:03.9]}
12... Bxd7 {[%clk 0:01:54.1]} 13. Qxd4 {[%clk 0:02:03]} 13... Rd8 {[%clk
0:01:35.9]} 14. O-O-O {[%clk 0:01:58.8]} 14... Be7 {[%clk 0:01:30.3]} 15. Nxd7
{[%clk 0:01:48]} 15... Rxd7 {[%clk 0:01:21.8]} 16. Qxg7 {[%clk 0:01:47.5]} 16...
Rf8 {[%clk 0:01:05.3]} 17. Qxh7 {[%clk 0:01:41.6]} 17... Bf6 {[%clk 0:00:40]}
18. Qe4 {[%clk 0:01:23.5]} 18... Rxd1+ {[%clk 0:00:21.1]} 19. Rxd1 {[%clk
0:01:21.5]} 19... Ke7 {[%clk 0:00:21.1]} 20. Qb4+ {[%clk 0:01:19.1]} 20... Ke8
{[%clk 0:00:19.8]} 21. h4 {[%clk 0:00:55]} 21... b5 {[%clk 0:00:19.7]} 22. g3
{[%clk 0:00:53.6]} 22... Be7 {[%clk 0:00:19.6]} 23. Qd4 {[%clk 0:00:51.8]} 23...
b4 {[%clk 0:00:19.1]} 24. c4 {[%clk 0:00:49.5]} 24... f5 {[%clk 0:00:16.8]} 25.
Kb1 {[%clk 0:00:46.6]} 25... a5 {[%clk 0:00:15.1]} 26. Bf4 {[%clk 0:00:44.9]}
26... Qb7 {[%clk 0:00:13.5]} 27. Qe5 {[%clk 0:00:42]} 27... Qc6 {[%clk
0:00:12.2]} 28. Qxa5 {[%clk 0:00:34.1]} 28... Kf7 {[%clk 0:00:10.2]} 29. Qe5
{[%clk 0:00:30.1]} 29... Ra8 {[%clk 0:00:07]} 30. b3 {[%clk 0:00:19.3]} 30...
Qa6 {[%clk 0:00:06.9]} 31. Qe2 {[%clk 0:00:18.8]} 31... Bf6 {[%clk 0:00:06]} 32.
Qh5+ {[%clk 0:00:14.5]} 32... Ke7 {[%clk 0:00:05.8]} 33. Qh7+ {[%clk 0:00:10.6]}
33... Ke8 {[%clk 0:00:06.1]} 34. Qg8+ {[%clk 0:00:08.4]} 34... Ke7 {[%clk
0:00:06.4]} 35. Qh7+ {[%clk 0:00:05.4]} 35... Ke8 {[%clk 0:00:06.3]} 36. Rd2
{[%clk 0:00:04.8]} 36... Qa3 {[%clk 0:00:05.6]} 37. Qg6+ {[%clk 0:00:03.7]}
37... Ke7 {[%clk 0:00:05.8]} 38. Bg5 {[%clk 0:00:03.9]} 38... Qxb3+ {[%clk
0:00:04.8]} 39. axb3 {[%clk 0:00:02.6]} 39... Ra1+ {[%clk 0:00:05.7]} 40. Kc2
{[%clk 0:00:02.7]} 40... Ra2+ {[%clk 0:00:06.6]} 41. Kd3 {[%clk 0:00:03.3]}
41... Rxd2+ {[%clk 0:00:06.9]} 42. Kxd2 {[%clk 0:00:04.2]} 1-0

[Event "*** Titled Tuesday Blitz"]
[Site "Chess.com"]
[Date "2020.05.12"]
[Round "6"]
[White "Funo09"]
[Black "elohunter1999"]
[Result "1/2-1/2"]
[WhiteElo "2726"]
[BlackElo "2583"]
[TimeControl "180+1"]
[EndTime "11:06:40 PDT"]
[Termination "Game drawn by agreement"]

1. e4 {[%clk 0:03:00.9]} 1... c5 {[%clk 0:02:59]} 2. Nc3 {[%clk 0:03:01.3]} 2...
Nc6 {[%clk 0:02:58.4]} 3. Bb5 {[%clk 0:03:01.8]} 3... Nd4 {[%clk 0:02:57.5]} 4.
Bc4 {[%clk 0:03:02.4]} 4... a6 {[%clk 0:02:47.1]} 5. Nf3 {[%clk 0:03:02.1]} 5...
b5 {[%clk 0:02:45.6]} 6. Bd5 {[%clk 0:03:01.8]} 6... Rb8 {[%clk 0:02:44.7]} 7.
Nxd4 {[%clk 0:03:02.3]} 7... cxd4 {[%clk 0:02:43.8]} 8. Ne2 {[%clk 0:03:03.2]}
8... Nf6 {[%clk 0:02:39.9]} 9. Nxd4 {[%clk 0:03:03]} 9... e6 {[%clk 0:02:39.2]}
10. Bb3 {[%clk 0:03:03.3]} 10... Nxe4 {[%clk 0:02:38.8]} 11. O-O {[%clk
0:03:03.5]} 11... Be7 {[%clk 0:02:31.8]} 12. d3 {[%clk 0:02:50.9]} 12... Nc5
{[%clk 0:02:30.2]} 13. Bf4 {[%clk 0:02:44.3]} 13... Ra8 {[%clk 0:02:21.7]} 14.
Re1 {[%clk 0:02:39.7]} 14... O-O {[%clk 0:02:16.7]} 15. Qh5 {[%clk 0:02:36.5]}
15... Nxb3 {[%clk 0:02:03.2]} 16. axb3 {[%clk 0:02:36]} 16... f6 {[%clk
0:01:46.7]} 17. Nxb5 {[%clk 0:02:30.4]} 17... e5 {[%clk 0:01:41.5]} 18. Bd2
{[%clk 0:02:21.1]} 18... d5 {[%clk 0:01:40.4]} 19. Nc3 {[%clk 0:02:17.3]} 19...
Bb7 {[%clk 0:01:38.3]} 20. Ra4 {[%clk 0:02:11.4]} 20... d4 {[%clk 0:01:34.6]}
21. Ne4 {[%clk 0:02:10.4]} 21... Rc8 {[%clk 0:01:34.3]} 22. Rc1 {[%clk
0:02:00.5]} 22... Qd5 {[%clk 0:01:33.8]} 23. Ra5 {[%clk 0:01:46.8]} 23... Qc6
{[%clk 0:01:32.5]} 24. Qf5 {[%clk 0:01:40.1]} 24... g6 {[%clk 0:01:29.3]} 25.
Qh3 {[%clk 0:01:39.8]} 25... f5 {[%clk 0:01:01.5]} 26. Ng5 {[%clk 0:01:29.5]}
26... Bxg5 {[%clk 0:01:00.3]} 27. Bxg5 {[%clk 0:01:30.4]} 27... e4 {[%clk
0:01:00.1]} 28. Re5 {[%clk 0:01:18.7]} 28... exd3 {[%clk 0:00:46.7]} 29. Re7
{[%clk 0:01:18.6]} 29... h5 {[%clk 0:00:45.4]} 30. Rce1 {[%clk 0:00:37.6]} 30...
dxc2 {[%clk 0:00:40.1]} 31. Bc1 {[%clk 0:00:37.5]} 31... Rce8 {[%clk 0:00:35]}
32. b4 {[%clk 0:00:31.4]} 32... Rxe7 {[%clk 0:00:34.6]} 33. Rxe7 {[%clk
0:00:32.3]} 33... Re8 {[%clk 0:00:34.9]} 34. Qb3+ {[%clk 0:00:31.6]} 34... Kh8
{[%clk 0:00:26.9]} 35. Rxe8+ {[%clk 0:00:19.4]} 35... Qxe8 {[%clk 0:00:25.1]}
36. Kf1 {[%clk 0:00:18.8]} 36... Qb5+ {[%clk 0:00:18]} 37. Ke1 {[%clk 0:00:19]}
37... Qe5+ {[%clk 0:00:17.3]} 38. Kf1 {[%clk 0:00:17.2]} 38... Qe4 {[%clk
0:00:15.8]} 39. f3 {[%clk 0:00:16]} 39... Qc6 {[%clk 0:00:15.3]} 40. Qd3 {[%clk
0:00:14]} 40... Qb5 {[%clk 0:00:14.7]} 41. Ke2 {[%clk 0:00:13.6]} 41... Bd5
{[%clk 0:00:13.4]} 42. Qxb5 {[%clk 0:00:13.5]} 42... axb5 {[%clk 0:00:13.2]} 43.
Kd3 {[%clk 0:00:14.4]} 43... Bb3 {[%clk 0:00:13.1]} 44. Kxd4 {[%clk 0:00:14.8]}
44... Kg7 {[%clk 0:00:13.4]} 45. Kc3 {[%clk 0:00:15.7]} 45... Bc4 {[%clk
0:00:12.4]} 46. Kxc2 {[%clk 0:00:16.6]} 46... Bf1 {[%clk 0:00:12.3]} 47. g3
{[%clk 0:00:16.8]} 47... Kf7 {[%clk 0:00:12.9]} 48. f4 {[%clk 0:00:17.7]} 48...
Ke6 {[%clk 0:00:13.3]} 49. Kc3 {[%clk 0:00:17.9]} 49... Kd5 {[%clk 0:00:13.8]}
1/2-1/2